bitfinex/quotes_BTCUSD_20250615
["timestamp","ask_amount","ask_price","bid_price","bid_amount"]
[1749990185271,0.19950598,105260.0,105250.0,0.40445455]
[1749990185494,0.19950598,105260.0,105250.0,0.40445476]
[1749990185717,0.19950598,105260.0,105250.0,0.40445473]
[1749990185933,0.19950598,105260.0,105250.0,0.40445441]
[1749990186153,0.19950598,105260.0,105250.0,0.37716408]
[1749990186599,0.19950598,105260.0,105250.0,0.3949537]
[1749990186822,0.19950598,105260.0,105250.0,0.37716408]
[1749990187046,0.19950598,105260.0,105250.0,0.39495371]
[1749990187268,0.19950598,105260.0,105250.0,0.37716408]
[1749990187496,0.19950598,105260.0,105250.0,0.38545292]
[1749990187718,0.19950598,105260.0,105250.0,0.38545308]
[1749990187942,0.19950598,105260.0,105250.0,0.38545313]
[1749990188206,0.19950598,105260.0,105250.0,0.38545305]
[1749990188429,0.19950598,105260.0,105250.0,0.35707061]
[1749990188872,0.19950598,105260.0,105250.0,0.33928071]
[1749990189083,0.19950598,105260.0,105250.0,0.35706748]
[1749990189299,0.19950598,105260.0,105250.0,0.35706761]
[1749990189534,0.19950598,105260.0,105250.0,0.35706776]
[1749990190001,0.19950598,105260.0,105250.0,0.33928071]
[1749990190213,0.19950598,105260.0,105250.0,0.35706811]
[1749990190435,0.19950598,105260.0,105250.0,0.35706812]
[1749990190659,0.19950598,105260.0,105250.0,0.33928071]
[1749990190886,0.19950598,105260.0,105250.0,0.35706832]
[1749990191675,0.19950598,105260.0,105250.0,0.35706803]
[1749990191886,0.19950598,105260.0,105250.0,0.35706802]
[1749990192096,0.19950598,105260.0,105250.0,0.34878144]
[1749990192329,0.19950598,105260.0,105250.0,0.36656859]
[1749990192551,0.19950598,105260.0,105250.0,0.34878144]
[1749990192991,0.19950598,105260.0,105250.0,0.36656841]
[1749990193205,0.19950598,105260.0,105250.0,0.36656869]
[1749990193446,0.19950598,105260.0,105250.0,0.34878144]
[1749990193678,0.19950598,105260.0,105250.0,0.3665687]
[1749990194113,0.19950598,105260.0,105250.0,0.36656841]
[1749990194331,0.19950598,105260.0,105250.0,0.34878144]
[1749990194550,0.19950598,105260.0,105250.0,0.36656797]
[1749990194780,0.00950001,105260.0,105250.0,0.36656785]
[1749990194989,0.02850003,105260.0,105250.0,0.36656771]
[1749990195204,0.02850003,105260.0,105250.0,0.33928071]
[1749990195205,0.21850573,105260.0,105250.0,0.33928071]
[1749990195417,0.21850573,105260.0,105250.0,0.36656781]
[1749990195629,0.21850573,105260.0,105250.0,0.37716408]
[1749990196067,0.21850573,105260.0,105250.0,0.39494945]
[1749990196279,0.20900599,105260.0,105250.0,0.37716408]
[1749990196703,0.20900599,105260.0,105250.0,0.39494644]
[1749990196940,0.20900599,105260.0,105250.0,0.37716408]
[1749990197350,0.20900599,105260.0,105250.0,0.39494643]
[1749990197567,0.20900599,105260.0,105250.0,0.37716408]
[1749990197765,0.19950598,105260.0,105250.0,0.38544561]
[1749990197983,0.19950598,105260.0,105250.0,0.36766326]
[1749990198192,0.19950598,105260.0,105250.0,0.38544561]
[1749990198427,0.19950598,105260.0,105250.0,0.36766326]
[1749990198635,0.19950598,105260.0,105250.0,0.38544536]
[1749990198858,0.19950598,105260.0,105250.0,0.36766344]
[1749990199075,0.19950598,105260.0,105250.0,0.38544492]
[1749990199306,0.19950598,105260.0,105250.0,0.38544494]
[1749990199519,0.1900057,105260.0,105250.0,0.38544528]
[1749990200031,0.1900057,105260.0,105250.0,0.18600733]
[1749990200246,0.1900057,105260.0,105250.0,0.16822549]
[1749990200456,0.1900057,105260.0,105250.0,0.18601043]
[1749990200666,0.1900057,105260.0,105250.0,0.14540923]
[1749990200877,0.1900057,105260.0,105250.0,0.11702742]
[1749990201101,0.1900057,105260.0,105250.0,0.11702744]
[1749990201307,0.1900057,105260.0,105250.0,0.1170277]
[1749990201507,0.1900057,105260.0,105250.0,0.09924176]
[1749990201804,0.1900057,105260.0,105250.0,0.11702802]
[1749990202009,0.1900057,105260.0,105250.0,0.02078625]
[1749990202202,0.1900057,105260.0,105250.0,0.003]
[1749990202436,0.1900057,105260.0,105250.0,0.001]
[1749990202634,0.1900057,105260.0,105250.0,0.01878701]
[1749990202834,0.1900057,105260.0,105250.0,0.01878675]
[1749990203117,0.00950118,105250.0,105240.0,0.32864431]
[1749990203331,0.19952493,105250.0,105240.0,0.40588308]
[1749990203539,0.19952493,105250.0,105240.0,0.57826938]
[1749990203778,0.19952493,105250.0,105240.0,0.56048308]
[1749990204137,0.19952493,105250.0,105240.0,0.57826901]
[1749990204448,0.19952493,105250.0,105240.0,0.57298471]
[1749990204865,0.19952493,105250.0,105240.0,0.59077023]
[1749990205069,0.19952493,105250.0,105240.0,0.59077018]
[1749990205251,0.19952493,105250.0,105240.0,0.59077022]
[1749990205451,0.19952493,105250.0,105240.0,0.55292334]
[1749990205703,0.19952493,105250.0,105240.0,0.55292324]
[1749990205908,0.19952493,105250.0,105240.0,0.52454069]
[1749990206136,0.19952493,105250.0,105240.0,0.52454095]
[1749990206366,0.19952493,105250.0,105240.0,0.53404255]
[1749990206542,0.19952493,105250.0,105240.0,0.51625682]
[1749990206715,0.19952493,105250.0,105240.0,0.53404255]
[1749990207128,0.19952493,105250.0,105240.0,0.51625682]
[1749990207283,0.19952493,105250.0,105240.0,0.58254924]
[1749990207485,0.19952493,105250.0,105240.0,0.60033497]
[1749990207687,0.19952493,105250.0,105240.0,0.58254924]
[1749990207889,0.19952493,105250.0,105240.0,0.57188937]
[1749990208090,0.19952493,105250.0,105240.0,0.5541037]
[1749990208345,0.19952493,105250.0,105240.0,0.58254909]
[1749990208576,0.19952493,105250.0,105240.0,0.60033479]
[1749990208782,0.19952493,105250.0,105240.0,0.60033484]
[1749990208975,0.19952493,105250.0,105240.0,0.58254909]
[1749990209216,0.19952493,105250.0,105240.0,0.57188971]
[1749990209435,0.19952493,105250.0,105240.0,0.5718903]
[1749990209645,0.19952493,105250.0,105240.0,0.53404336]
[1749990209841,0.19952493,105250.0,105240.0,0.53404328]
[1749990210024,0.19952493,105250.0,105240.0,0.58263236]
[1749990210369,0.19952493,105250.0,105240.0,0.57313082]
[1749990210572,0.19952493,105250.0,105240.0,0.59091688]
[1749990210775,0.19952493,105250.0,105240.0,0.53520194]
[1749990211202,0.19952493,105250.0,105240.0,0.55296694]
[1749990211986,0.19952493,105250.0,105240.0,0.55296692]
[1749990212144,0.19952493,105250.0,105240.0,0.53520194]
[1749990212364,0.19952493,105250.0,105240.0,0.56246843]
[1749990212568,0.19952493,105250.0,105240.0,0.56246846]
[1749990212793,0.19952493,105250.0,105240.0,0.54470348]
[1749990212958,0.19952493,105250.0,105240.0,0.56246854]
[1749990213745,0.19952493,105250.0,105240.0,0.56246887]
[1749990213955,0.19952493,105250.0,105240.0,0.56246897]
[1749990214162,0.19952493,105250.0,105240.0,0.54470348]
[1749990214366,0.19952493,105250.0,105240.0,0.56246886]
[1749990215002,0.19952493,105250.0,105240.0,0.56246843]
[1749990215207,0.02850273,105250.0,105240.0,0.57192987]
[1749990215407,0.02850273,105250.0,105240.0,0.55416493]
[1749990215614,0.02850273,105250.0,105240.0,0.41737]
[1749990215866,0.02850273,105250.0,105240.0,0.57193]
[1749990216076,0.02850273,105250.0,105240.0,0.57192955]
[1749990216281,0.02850273,105250.0,105240.0,0.57192963]
[1749990216490,0.02850273,105250.0,105240.0,0.5719296]
[1749990216693,0.02850273,105250.0,105240.0,0.57192953]
[1749990216899,0.03800382,105250.0,105240.0,0.57192951]
[1749990217135,0.03800382,105250.0,105240.0,0.55416493]
[1749990217336,0.03800382,105250.0,105240.0,0.57192952]
[1749990217751,0.03800382,105250.0,105240.0,0.57192953]
[1749990217953,0.03800382,105250.0,105240.0,0.55416493]
[1749990218562,0.03800382,105250.0,105240.0,0.57192955]
[1749990218767,0.03800382,105250.0,105240.0,0.57192956]
[1749990218973,0.03800382,105250.0,105240.0,0.57192954]
[1749990219182,0.03800382,105250.0,105240.0,0.57192951]
[1749990219414,0.03800382,105250.0,105240.0,0.55416493]
[1749990219860,0.03800382,105250.0,105240.0,0.57192962]
[1749990220099,0.03800382,105250.0,105240.0,0.57192965]
[1749990220296,0.03800382,105250.0,105240.0,0.57192964]
[1749990220511,0.03800382,105250.0,105240.0,0.55416493]
[1749990220726,0.03800382,105250.0,105240.0,0.57192962]
[1749990220946,0.047505,105250.0,105240.0,0.55416493]
[1749990221365,0.22802793,105250.0,105240.0,0.53602714]
[1749990221568,0.22802793,105250.0,105240.0,0.53602738]
[1749990221772,0.22802793,105250.0,105240.0,0.51826194]
[1749990221974,0.22802793,105250.0,105240.0,0.53602738]
[1749990222181,0.22802793,105250.0,105240.0,0.53602739]
[1749990222427,0.22802793,105250.0,105240.0,0.53602697]
[1749990222632,0.22802793,105250.0,105240.0,0.53602699]
[1749990222837,0.22802793,105250.0,105240.0,0.53602697]
[1749990223042,0.22802793,105250.0,105240.0,0.51826194]
[1749990223246,0.22802793,105250.0,105240.0,0.38146695]
[1749990223458,0.20902602,105250.0,105240.0,0.07631376]
[1749990223672,0.21652493,105250.0,105240.0,0.17532584]
[1749990224128,0.21652493,105250.0,105240.0,0.02076584]
[1749990224330,0.21652493,105250.0,105240.0,0.02076858]
[1749990224741,0.21652493,105250.0,105240.0,0.02077098]
[1749990225182,0.21652493,105250.0,105240.0,0.02074738]
[1749990225409,0.21652493,105250.0,105240.0,0.02074734]
[1749990225849,0.57342493,105250.0,105240.0,0.02074758]
[1749990226089,0.57342493,105250.0,105240.0,0.003]
[1749990226344,0.55652493,105250.0,105240.0,0.02075224]
[1749990226555,0.55652493,105250.0,105240.0,0.003]
[1749990226774,0.55652493,105250.0,105240.0,0.02075224]
[1749990226996,0.55652493,105250.0,105240.0,0.02075237]
[1749990227214,0.55652493,105250.0,105240.0,0.0207524]
[1749990227434,0.55652493,105250.0,105240.0,0.02075245]
[1749990227631,0.55652493,105250.0,105240.0,0.003]
[1749990228127,0.55652493,105250.0,105240.0,0.02075157]
[1749990228346,0.55652493,105250.0,105240.0,0.003]
[1749990228585,0.55652493,105250.0,105240.0,0.02075197]
[1749990228819,0.55652493,105250.0,105240.0,0.02075247]
[1749990229071,0.55652493,105250.0,105240.0,0.003]
[1749990229306,0.55652493,105250.0,105240.0,0.02075247]
[1749990229542,0.53952493,105250.0,105240.0,0.003]
[1749990229758,0.53952493,105250.0,105240.0,0.02075247]
[1749990230000,0.53952493,105250.0,105240.0,0.003]
[1749990230217,0.53952493,105250.0,105240.0,0.02075216]
[1749990230444,0.53952493,105250.0,105240.0,0.02075184]
[1749990231112,0.53952493,105250.0,105240.0,0.02075208]
[1749990231785,0.53952493,105250.0,105240.0,0.02075204]
[1749990232003,0.53952493,105250.0,105240.0,0.02075206]
[1749990232214,0.53952493,105250.0,105240.0,0.02075205]
[1749990232431,0.53952493,105250.0,105240.0,0.02075204]
[1749990232650,0.53952493,105250.0,105240.0,0.02075202]
[1749990233093,0.53952493,105250.0,105240.0,0.003]
[1749990233299,0.53952493,105250.0,105240.0,0.02075195]
[1749990233511,0.53952493,105250.0,105240.0,0.003]
[1749990233954,0.53952493,105250.0,105240.0,0.02075198]
[1749990234403,0.53952493,105250.0,105240.0,0.003]
[1749990234611,0.53952493,105250.0,105240.0,0.02075201]
[1749990234818,0.53952493,105250.0,105240.0,0.003]
[1749990235468,0.53952493,105250.0,105240.0,0.02075196]
[1749990235678,0.53952493,105250.0,105240.0,0.02075194]
[1749990235886,0.69408493,105250.0,105240.0,0.02075193]
[1749990236092,0.53952493,105250.0,105240.0,0.003]
[1749990236305,0.53952493,105250.0,105240.0,0.03575195]
[1749990236512,0.53952493,105250.0,105240.0,0.03575203]
[1749990236719,0.53952493,105250.0,105240.0,0.03575207]
[1749990236923,0.53952493,105250.0,105240.0,0.018]
[1749990237130,0.53952493,105250.0,105240.0,0.03575215]
[1749990237343,0.53952493,105250.0,105240.0,0.03575243]
[1749990237555,0.53952493,105250.0,105240.0,0.03575242]
[1749990237786,0.53952493,105250.0,105240.0,0.03575248]
[1749990238010,0.53952493,105250.0,105240.0,0.018]
[1749990238266,0.53952493,105250.0,105240.0,0.03575244]
[1749990238507,0.53952493,105250.0,105240.0,0.03575431]
[1749990238760,0.53952493,105250.0,105240.0,0.0357543]
[1749990239062,0.53952493,105250.0,105240.0,0.018]
[1749990239291,0.53952475,105250.0,105240.0,0.27136792]
[1749990239525,0.53952475,105250.0,105240.0,0.26134869]
[1749990239735,0.53952475,105250.0,105240.0,0.27910247]
[1749990239958,0.53952475,105250.0,105240.0,0.26959947]
[1749990240183,0.53952475,105250.0,105240.0,0.26009784]
[1749990240411,0.53952475,105250.0,105240.0,0.26009691]
[1749990240641,0.53952475,105250.0,105240.0,0.26009709]
[1749990240837,0.53952475,105250.0,105240.0,0.26009742]
[1749990241082,0.53952475,105250.0,105240.0,0.26012472]
[1749990241310,0.53952475,105250.0,105240.0,0.2423457]
[1749990241558,0.53952475,105250.0,105240.0,0.27912783]
[1749990241777,0.53952475,105250.0,105240.0,0.27912785]
[1749990241990,0.53952475,105250.0,105240.0,0.27912789]
[1749990242454,0.53952475,105250.0,105240.0,0.27912777]
[1749990242680,0.53952475,105250.0,105240.0,0.27912773]
[1749990242904,0.53952475,105250.0,105240.0,0.25184751]
[1749990243569,0.53952475,105250.0,105240.0,0.26962494]
[1749990243789,0.53002375,105250.0,105240.0,0.25062117]
[1749990244015,0.53002375,105250.0,105240.0,0.0333]
[1749990244241,0.53002375,105250.0,105240.0,0.0510782]
[1749990244719,0.53002375,105250.0,105240.0,0.0333]
[1749990244934,0.53002375,105250.0,105240.0,0.05107765]
[1749990245153,0.53002375,105250.0,105240.0,0.0333]
[1749990245414,0.53002375,105250.0,105240.0,0.003]
[1749990245859,0.54602375,105250.0,105240.0,0.020779]
[1749990246082,0.54602375,105250.0,105240.0,0.003]
[1749990246728,0.54602375,105250.0,105240.0,0.02077929]
[1749990247204,0.54602375,105250.0,105240.0,0.003]
[1749990247644,0.54602375,105250.0,105240.0,0.02078001]
[1749990248153,0.54602375,105250.0,105240.0,0.02078007]
[1749990248614,0.54602375,105250.0,105240.0,0.02078022]
[1749990248826,0.54602375,105250.0,105240.0,0.02078017]
[1749990249042,0.54602375,105250.0,105240.0,0.02078043]
[1749990249261,0.54602375,105250.0,105240.0,0.003]
[1749990249477,0.54602375,105250.0,105240.0,0.02078063]
[1749990249701,0.54602375,105250.0,105240.0,0.02078064]
[1749990249912,0.54602375,105250.0,105240.0,0.02078061]
[1749990250128,0.56182375,105250.0,105240.0,0.02078061]
[1749990250339,0.56182375,105250.0,105240.0,0.02078071]
[1749990250516,0.56182375,105250.0,105240.0,0.02078126]
[1749990250767,0.56182375,105250.0,105240.0,0.003]
[1749990251184,0.21856775,105230.0,105220.0,0.26843123]
[1749990251392,0.21856775,105230.0,105220.0,0.36467299]
[1749990251853,0.19956276,105230.0,105220.0,0.15558842]
[1749990252076,0.19956276,105230.0,105220.0,0.0151]
[1749990252284,0.19956276,105230.0,105220.0,0.02399318]
[1749990252535,0.19956276,105230.0,105220.0,0.02546815]
[1749990252790,0.19956276,105230.0,105220.0,0.0254698]
[1749990253010,0.19956276,105230.0,105220.0,0.02447036]
[1749990253217,0.19956276,105230.0,105220.0,0.02447033]
[1749990253462,0.19956276,105230.0,105220.0,0.01557497]
[1749990253695,0.19956276,105230.0,105220.0,0.02647036]
[1749990253912,0.19956276,105230.0,105220.0,0.04226103]
[1749990254154,0.19956276,105230.0,105220.0,0.02447033]
[1749990254326,0.19956276,105230.0,105220.0,0.02447031]
[1749990254550,0.19956276,105230.0,105220.0,0.01557497]
[1749990254775,0.19956276,105230.0,105220.0,0.02447022]
[1749990254973,0.19956276,105230.0,105220.0,0.04226079]
[1749990255412,0.21641436,105230.0,105220.0,0.04227848]
[1749990255822,0.21641436,105230.0,105220.0,0.02447614]
[1749990256031,0.21641436,105230.0,105220.0,0.04217915]
[1749990256233,0.21641436,105230.0,105220.0,0.03331109]
[1749990256443,0.21641436,105230.0,105220.0,0.02444303]
[1749990256644,0.21641436,105230.0,105220.0,0.04217915]
[1749990256878,0.21641436,105230.0,105220.0,0.01557497]
[1749990257087,0.21641436,105230.0,105220.0,0.02444303]
[1749990257262,0.21641436,105230.0,105220.0,0.03331109]
[1749990257484,0.21641436,105230.0,105220.0,0.04217915]
[1749990257696,0.21641436,105230.0,105220.0,0.02444303]
[1749990257899,0.21641436,105230.0,105220.0,0.03331112]
[1749990258099,0.21641436,105230.0,105220.0,0.02444303]
[1749990258306,0.21641436,105230.0,105220.0,0.0333111]
[1749990258458,0.21641436,105230.0,105220.0,0.04217916]
[1749990258659,0.21641436,105230.0,105220.0,0.00934326]
[1749990259075,0.21641436,105230.0,105220.0,0.00047497]
[1749990259076,0.55641436,105230.0,105220.0,0.00047497]
[1749990259282,0.55641436,105230.0,105220.0,0.01821232]
[1749990259490,0.55641436,105230.0,105220.0,0.02708107]
[1749990259695,0.55641436,105230.0,105220.0,0.00934368]
[1749990259902,0.55641436,105230.0,105220.0,0.0270811]
[1749990260104,0.55641436,105230.0,105220.0,0.00934367]
[1749990260332,0.55641436,105230.0,105220.0,0.01821238]
[1749990260571,0.55641436,105230.0,105220.0,0.00047497]
[1749990260774,0.55641436,105230.0,105220.0,0.01821239]
[1749990260975,0.55641436,105230.0,105220.0,0.0270811]
[1749990261179,0.55641436,105230.0,105220.0,0.02708109]
[1749990261386,0.55641436,105230.0,105220.0,0.0270811]
[1749990261599,0.55641436,105230.0,105220.0,0.02708109]
[1749990261830,0.55641436,105230.0,105220.0,0.00934367]
[1749990262032,0.55641436,105230.0,105220.0,0.02708108]
[1749990262232,0.57231436,105230.0,105220.0,0.01821238]
[1749990262433,0.57231436,105230.0,105220.0,0.0270811]
[1749990262637,0.57231436,105230.0,105220.0,0.00934368]
[1749990262935,0.57231436,105230.0,105220.0,0.0270811]
[1749990263170,0.57231436,105230.0,105220.0,0.00047497]
[1749990263371,0.57231436,105230.0,105220.0,0.00934367]
[1749990263576,0.55641436,105230.0,105220.0,0.0270812]
[1749990263777,0.55641436,105230.0,105220.0,0.02708122]
[1749990263982,0.55641436,105230.0,105220.0,0.01821251]
[1749990264223,0.55641436,105230.0,105220.0,0.02708128]
[1749990264444,0.55641436,105230.0,105220.0,0.00047497]
[1749990264854,0.55641436,105230.0,105220.0,0.02708541]
[1749990265065,0.57291436,105230.0,105220.0,0.00047497]
[1749990265265,0.58871436,105230.0,105220.0,0.00047497]
[1749990265471,0.57291436,105230.0,105220.0,0.00934619]
[1749990265683,0.57291436,105230.0,105220.0,0.00047497]
[1749990266711,0.57291436,105230.0,105220.0,0.02709196]
[1749990266912,0.57291436,105230.0,105220.0,0.0093476]
[1749990267117,0.57291436,105230.0,105220.0,0.00934755]
[1749990267324,0.57291436,105230.0,105220.0,0.00047497]
[1749990267736,0.57291436,105230.0,105220.0,0.00934733]
[1749990268412,0.57291436,105230.0,105220.0,0.00047497]
[1749990268621,0.57291436,105230.0,105220.0,0.02719145]
[1749990268828,0.57291436,105230.0,105220.0,0.01828595]
[1749990269037,0.57291436,105230.0,105220.0,0.00938046]
[1749990269436,0.57291436,105230.0,105220.0,0.01828596]
[1749990270038,0.57291436,105230.0,105220.0,0.00938046]
[1749990270391,0.57291436,105230.0,105220.0,0.02719145]
[1749990270593,0.57291436,105230.0,105220.0,0.00047497]
[1749990270823,0.57291436,105230.0,105220.0,0.02719184]
[1749990270999,0.57291436,105230.0,105220.0,0.02719194]
[1749990272626,0.57291436,105230.0,105220.0,0.02719196]
[1749990272859,0.57291436,105230.0,105220.0,0.00047497]
[1749990273084,0.57291436,105230.0,105220.0,0.02719196]
[1749990273294,0.57291436,105230.0,105220.0,0.0182863]
[1749990273501,0.57291436,105230.0,105220.0,0.02719196]
[1749990273938,0.57291436,105230.0,105220.0,0.0182863]
[1749990274425,0.57291436,105230.0,105220.0,0.00047497]
[1749990274694,0.57291436,105230.0,105220.0,0.02719196]
[1749990274907,0.58871436,105230.0,105220.0,0.0182863]
[1749990275106,0.58871436,105230.0,105220.0,0.00047497]
[1749990275351,0.58871436,105230.0,105220.0,0.02719196]
[1749990275579,0.58871436,105230.0,105220.0,0.00047497]
[1749990276069,0.58871436,105230.0,105220.0,0.01828629]
[1749990276290,0.58871436,105230.0,105220.0,0.0271767]
[1749990276516,0.59071436,105230.0,105220.0,0.01828629]
[1749990276738,0.59071436,105230.0,105220.0,0.00936538]
[1749990277402,0.59071436,105230.0,105220.0,0.0271462]
[1749990277639,0.59071436,105230.0,105220.0,0.00936538]
[1749990277852,0.59071436,105230.0,105220.0,0.01825581]
[1749990278099,0.59071436,105230.0,105220.0,0.0093655]
[1749990278326,0.57491436,105230.0,105220.0,0.0093655]
[1749990278548,0.55841436,105230.0,105220.0,0.02714689]
[1749990278778,0.55841436,105230.0,105220.0,0.00936562]
[1749990279005,0.55841436,105230.0,105220.0,0.0093657]
[1749990279248,0.55841436,105230.0,105220.0,0.02714707]
[1749990279757,0.55841436,105230.0,105220.0,0.00936567]
[1749990279955,0.55841436,105230.0,105220.0,0.01825604]
[1749990280183,0.55841436,105230.0,105220.0,0.00047497]
[1749990280406,0.55841436,105230.0,105220.0,0.0093655]
[1749990280634,0.55841436,105230.0,105220.0,0.02714691]
[1749990280860,0.34742316,105230.0,105220.0,0.00936566]
[1749990281104,0.34742316,105230.0,105220.0,0.02714699]
[1749990281325,0.54698592,105230.0,105220.0,0.0093656]
[1749990281520,0.54698592,105230.0,105220.0,0.02714624]
[1749990281735,0.54698592,105230.0,105220.0,0.01825582]
[1749990281960,0.54698592,105230.0,105220.0,0.02714624]
[1749990282176,0.54698592,105230.0,105220.0,0.00936539]
[1749990282423,0.54698592,105230.0,105220.0,0.02714626]
[1749990282642,0.54698592,105230.0,105220.0,0.02714627]
[1749990282864,0.54698592,105230.0,105220.0,0.02714626]
[1749990283493,0.54698592,105230.0,105220.0,0.0093654]
[1749990283931,0.54698592,105230.0,105220.0,0.02714627]
[1749990284344,0.54698592,105230.0,105220.0,0.0093654]
[1749990284576,0.54698592,105230.0,105220.0,0.02714626]
[1749990285188,0.54698592,105230.0,105220.0,0.0093654]
[1749990285392,0.54698592,105230.0,105220.0,0.02714626]
[1749990285909,0.54698592,105230.0,105220.0,0.02719202]
[1749990286116,0.54698592,105230.0,105220.0,0.02719201]
[1749990286332,0.54698592,105230.0,105220.0,0.00938065]
[1749990286569,0.54698592,105230.0,105220.0,0.02719202]
[1749990286771,0.54698592,105230.0,105220.0,0.01828634]
[1749990286978,0.54698592,105230.0,105220.0,0.02719202]
[1749990287173,0.54698592,105230.0,105220.0,0.01828634]
[1749990287602,0.70150592,105230.0,105220.0,0.05869201]
[1749990287832,0.70150592,105230.0,105220.0,0.04978594]
[1749990288040,0.70150592,105230.0,105220.0,0.05869088]
[1749990288264,0.70150592,105230.0,105220.0,0.04978554]
[1749990288538,0.70150592,105230.0,105220.0,0.05869082]
[1749990288754,0.70150592,105230.0,105220.0,0.03197497]
[1749990288969,0.70150592,105230.0,105220.0,0.05869084]
[1749990289187,0.70150592,105230.0,105220.0,0.04978555]
[1749990289324,0.70150592,105230.0,105220.0,0.04088026]
[1749990289727,0.70150592,105230.0,105220.0,0.04279083]
[1749990289937,0.70150592,105230.0,105220.0,0.03388554]
[1749990290156,0.70150592,105230.0,105220.0,0.02498036]
[1749990290371,0.70150592,105230.0,105220.0,0.04279173]
[1749990290569,0.70150592,105230.0,105220.0,0.04279202]
[1749990291531,0.70150592,105230.0,105220.0,0.01607497]
[1749990291727,0.70150592,105230.0,105220.0,0.04279202]
[1749990291929,0.70150592,105230.0,105220.0,0.03388634]
[1749990292133,0.70150592,105230.0,105220.0,0.04279202]
[1749990292329,0.70150592,105230.0,105220.0,0.02498061]
[1749990292544,0.70150592,105230.0,105220.0,0.04279202]
[1749990292796,0.70150592,105230.0,105220.0,0.04279201]
[1749990293249,0.70150592,105230.0,105220.0,0.03388634]
[1749990293454,0.70150592,105230.0,105220.0,0.04279207]
[1749990293678,0.70150592,105230.0,105220.0,0.0427921]
[1749990293872,0.70150592,105230.0,105220.0,0.04279196]
[1749990294080,0.70150592,105230.0,105220.0,0.02498061]
[1749990294287,0.70150592,105230.0,105220.0,0.01607497]
[1749990295080,0.70150592,105230.0,105220.0,0.03388587]
[1749990295296,0.70150592,105230.0,105220.0,0.03388585]
[1749990295498,0.70150592,105230.0,105220.0,0.03388582]
[1749990295905,0.70150592,105230.0,105220.0,0.03388587]
[1749990296109,0.70150592,105230.0,105220.0,0.03388621]
[1749990296317,0.70150592,105230.0,105220.0,0.01607497]
[1749990296929,0.70150592,105230.0,105220.0,0.03388623]
[1749990297133,0.70150592,105230.0,105220.0,0.03388624]
[1749990297319,0.70150592,105230.0,105220.0,0.01607497]
[1749990297521,0.70150592,105230.0,105220.0,0.03388623]
[1749990299048,0.70150592,105230.0,105220.0,0.03388622]
[1749990299249,0.70150592,105230.0,105220.0,0.03388623]
[1749990299451,0.70150592,105230.0,105220.0,0.01607497]
[1749990299654,0.70150592,105230.0,105220.0,0.03388622]
[1749990299792,0.70150592,105230.0,105220.0,0.03388625]
[1749990300223,0.70150592,105230.0,105220.0,0.03388622]
[1749990300625,0.70150592,105230.0,105220.0,0.05028622]
[1749990301039,0.70150592,105230.0,105220.0,0.05028618]
[1749990301242,0.70150592,105230.0,105220.0,0.05028617]
[1749990301653,0.70150592,105230.0,105220.0,0.03388617]
[1749990302067,0.70150592,105230.0,105220.0,0.03388616]
[1749990302243,0.70150592,105230.0,105220.0,0.01828604]
[1749990302414,0.70150592,105230.0,105220.0,0.01828605]
[1749990303238,0.70150592,105230.0,105220.0,0.01828622]
[1749990303443,0.70150592,105230.0,105220.0,0.03368614]
[1749990303894,0.71780592,105230.0,105220.0,0.00047497]
[1749990304098,0.71780592,105230.0,105220.0,0.01828663]
[1749990304295,0.71780592,105230.0,105220.0,0.01828664]
[1749990304500,0.71780592,105230.0,105220.0,0.00047497]
[1749990304671,0.71780592,105230.0,105220.0,0.01828702]
[1749990304871,0.74627427,105230.0,105220.0,0.01828717]
[1749990305167,5.79627427,105230.0,105220.0,0.00047497]
[1749990305596,5.79627427,105230.0,105220.0,0.01828859]
[1749990306012,5.79627427,105230.0,105220.0,0.01828872]
[1749990306210,5.79627427,105230.0,105220.0,0.01828873]
[1749990306430,5.79627427,105230.0,105220.0,0.00047497]
[1749990306691,5.80124116,105230.0,105220.0,0.01828941]
[1749990306908,5.80124116,105230.0,105220.0,0.00047497]
[1749990307109,5.80124116,105230.0,105220.0,0.01828967]
[1749990307315,5.80124116,105230.0,105220.0,0.0182898]
[1749990307728,5.80124116,105230.0,105220.0,0.00047497]
[1749990307951,5.80124116,105230.0,105220.0,0.0182898]
[1749990308776,5.80124116,105230.0,105220.0,0.0182899]
[1749990309422,5.80124116,105230.0,105220.0,0.01828987]
[1749990309623,5.80124116,105230.0,105220.0,0.0271976]
[1749990309826,5.80124116,105230.0,105220.0,0.02719811]
[1749990310027,5.80124116,105230.0,105220.0,0.0093827]
[1749990310238,5.80124116,105230.0,105220.0,0.00047497]
[1749990310458,5.80124116,105230.0,105220.0,0.0093827]
[1749990310662,5.80124116,105230.0,105220.0,0.02719817]
[1749990310871,5.80124116,105230.0,105220.0,0.0093827]
[1749990311097,5.80124116,105230.0,105220.0,0.02719817]
[1749990311307,5.80124116,105230.0,105220.0,0.0093827]
[1749990311583,5.80124116,105230.0,105220.0,0.02719817]
[1749990311803,5.80124116,105230.0,105220.0,0.01829044]
[1749990312006,5.80124116,105230.0,105220.0,0.01829043]
[1749990312212,5.80124116,105230.0,105220.0,0.02719814]
[1749990312416,5.80124116,105230.0,105220.0,0.02719817]
[1749990312618,5.80124116,105230.0,105220.0,0.0271982]
[1749990313041,5.80124116,105230.0,105220.0,0.00938271]
[1749990313675,5.80124116,105230.0,105220.0,0.0271982]
[1749990314113,5.80124116,105230.0,105220.0,0.02719819]
[1749990314383,5.78494116,105230.0,105220.0,0.01829044]
[1749990314818,5.78494116,105230.0,105220.0,0.02719818]
[1749990315050,5.80144116,105230.0,105220.0,0.00938271]
[1749990315280,5.80144116,105230.0,105220.0,0.0271982]
[1749990315508,5.80144116,105230.0,105220.0,0.02719822]
[1749990315700,5.84124116,105230.0,105220.0,0.00936847]
[1749990315960,5.84124116,105230.0,105220.0,0.00047497]
[1749990316377,5.84124116,105230.0,105220.0,0.00936845]
[1749990316590,5.84124116,105230.0,105220.0,0.00936852]
[1749990316793,5.84124116,105230.0,105220.0,0.00047497]
[1749990317455,5.64692116,105230.0,105220.0,0.00936862]
[1749990317660,5.84116116,105230.0,105220.0,0.00936862]
[1749990317891,5.84116116,105230.0,105220.0,0.00047497]
[1749990318067,5.84116116,105230.0,105220.0,0.00936862]
[1749990318314,5.84116116,105230.0,105220.0,0.00047497]
[1749990318315,5.81269281,105230.0,105220.0,0.00047497]
[1749990318731,5.81269281,105230.0,105220.0,0.00936862]
[1749990318940,5.81269281,105230.0,105220.0,0.00936863]
[1749990319797,5.79619281,105230.0,105220.0,0.00047497]
[1749990320003,5.79619281,105230.0,105220.0,0.00936863]
[1749990320211,5.79619281,105230.0,105220.0,0.00047497]
[1749990320423,5.79619281,105230.0,105220.0,0.00936863]
[1749990321009,5.79619281,105230.0,105220.0,0.00047497]
[1749990321273,5.79619281,105230.0,105220.0,0.00936863]
[1749990321498,5.79619281,105230.0,105220.0,0.0093686]
[1749990321714,5.79619281,105230.0,105220.0,0.02586867]
[1749990321942,5.79619281,105230.0,105220.0,0.02586869]
[1749990322123,5.79619281,105230.0,105220.0,0.01697497]
[1749990322279,5.79619281,105230.0,105220.0,0.02586869]
[1749990322475,5.79619281,105230.0,105220.0,0.02586868]